fUST/lending_fUST_20250101
["ID","MTS","AMOUNT","RATE_DAILY","PERIOD"]
[347354488,1735725059244,-563.09630405,0.00019473,2]
[347354489,1735725059254,-500.0,0.00019473,2]
[347354490,1735725059263,-500.0,0.00019473,2]
[347354491,1735725059272,-777.81,0.000195,2]
[347354492,1735725059281,-60039.11435579,0.000195,2]
[347354493,1735725059290,-151.0,0.000195,2]
[347354494,1735725059299,-287.615158,0.000195,2]
[347354495,1735725059309,-287.615158,0.000195,2]
[347354496,1735725059318,-300.025393,0.000195,2]
[347354497,1735725059326,-219.391353,0.000195,2]
[347354498,1735725059335,-219.391353,0.000195,2]
[347354499,1735725059344,-152.07935229,0.00019559,2]
[347354500,1735725059353,-990.15200533,0.00019642,2]
[347354501,1735725059363,-1014.43636769,0.00019701,2]
[347354502,1735725059372,-1000.0,0.00019721,2]
[347354503,1735725059381,-271.03499006,0.00019721,2]
[347354504,1735725059390,-1007.81208901,0.00019721,2]
[347354505,1735725059399,-10998.49,0.00019726,3]
[347354506,1735725059411,-1718.89,0.00019726,3]
[347354507,1735725059420,-500.0,0.00019726,3]
[347354508,1735725059429,-628.08,0.00019726,3]
[347354509,1735725059438,-474.04318687,0.00019726,3]
[347354510,1735725059449,-500.0,0.00019726,3]
[347354511,1735725059458,-500.0,0.00019726,3]
[347354512,1735725059467,-500.0,0.00019726,3]
[347354513,1735725059477,-500.0,0.00019726,3]
[347354514,1735725059486,-500.0,0.00019726,3]
[347354515,1735725059495,-500.0,0.00019726,3]
[347354516,1735725059504,-500.0,0.00019726,3]
[347354517,1735725059513,-500.0,0.00019726,3]
[347354518,1735725059521,-500.0,0.00019726,3]
[347354519,1735725059530,-503.49165413,0.00019726,3]
[347354520,1735725059540,-445.57756285,0.00019726,3]
[347354521,1735725059548,-500.0,0.00019726,3]
[347354522,1735725059557,-500.0,0.00019726,3]
[347354523,1735725059566,-505.81074965,0.00019726,3]
[347354524,1735725059575,-588.37,0.00019726,3]
[347354525,1735725059584,-500.0,0.00019726,3]
[347354526,1735725059593,-501.98184791,0.00019726,3]
[347354527,1735725059602,-500.0,0.00019726,3]
[347354528,1735725059611,-603.34,0.00019726,3]
[347354529,1735725059620,-500.0,0.00019726,3]
[347354530,1735725059630,-488.04738821,0.00019726,3]
[347354531,1735725059638,-500.0,0.00019726,3]
[347354532,1735725059658,-500.0,0.00019726,3]
[347354533,1735725059667,-603.03,0.00019726,3]
[347354534,1735725059677,-557.01,0.00019726,3]
[347354535,1735725059687,-500.0,0.00019726,3]
[347354536,1735725059696,-2795.09,0.00019726,2]
[347354537,1735725059706,-861.34,0.00019726,2]
[347354538,1735725059715,-500.0,0.00019726,3]
[347354539,1735725059724,-500.0,0.00019726,3]
[347354540,1735725059733,-500.0,0.00019726,3]
[347354541,1735725059742,-609.16533686,0.00019726,3]
[347354542,1735725059752,-500.0,0.00019726,3]
[347354543,1735725059762,-500.0,0.00019726,3]
[347354544,1735725059771,-500.0,0.00019726,3]
[347354545,1735725059780,-801.22,0.00019726,3]
[347354546,1735725059790,-3079.18,0.00019726,3]
[347354547,1735725059800,-290.34072632,0.00019726,3]
[347354548,1735725059810,-500.0,0.00019726,3]
[347354549,1735725059821,-500.0,0.00019726,3]
[347354550,1735725059832,-282.13558844,0.00019726,3]
[347354551,1735725059843,-500.0,0.00019726,3]
[347354552,1735725059854,-544.4543932,0.00019726,3]
[347354553,1735725059862,-172.93464337,0.00019726,3]
[347354554,1735725059871,-500.0,0.00019726,3]
[347354555,1735725059880,-500.0,0.00019726,3]
[347354556,1735725059889,-500.0,0.00019726,3]
[347354557,1735725059898,-500.0,0.00019726,3]
[347354558,1735725059908,-151.0,0.00019726,2]
[347354559,1735725059917,-151.0,0.00019726,2]
[347354560,1735725060016,-12170.76,0.00019726,3]
[347354561,1735725060026,-287.615158,0.00019726,2]
[347354562,1735725060035,-287.615158,0.00019726,2]
[347354563,1735725060046,-428.65768438,0.00019726,3]
[347354564,1735725060055,-500.0,0.00019726,3]
[347354565,1735725060064,-500.0,0.00019726,3]
[347354566,1735725060073,-500.0,0.00019726,3]
[347354567,1735725060082,-287.615158,0.00019726,2]
[347354568,1735725060091,-287.615158,0.00019726,2]
[347354569,1735725060101,-500.0,0.00019726,3]
[347354570,1735725060110,-854.83,0.00019726,3]
[347354571,1735725060119,-500.0,0.00019726,3]
[347354572,1735725060128,-500.0,0.00019726,3]
[347354573,1735725060137,-500.0,0.00019726,3]
[347354574,1735725060147,-500.0,0.00019726,3]
[347354575,1735725060156,-500.0,0.00019726,3]
[347354576,1735725060165,-500.65587421,0.00019726,3]
[347354577,1735725060175,-500.0,0.00019726,3]
[347354578,1735725060184,-737.73,0.00019726,3]
[347354579,1735725060194,-500.0,0.00019726,3]
[347354580,1735725060203,-500.0,0.00019726,3]
[347354581,1735725060212,-260.75761172,0.00019726,3]
[347354582,1735725060221,-516.21,0.00019726,3]
[347354583,1735725060231,-500.0,0.00019726,3]
[347354584,1735725060240,-500.0,0.00019726,3]
[347354585,1735725060249,-500.0,0.00019726,3]
[347354586,1735725060258,-225.3724836,0.00019726,3]
[347354587,1735725060267,-500.0,0.00019726,3]
[347354588,1735725060276,-504.94716183,0.00019726,3]
[347354589,1735725060285,-500.0,0.00019726,3]
[347354590,1735725060294,-219.391353,0.00019726,2]
[347354591,1735725060303,-219.391353,0.00019726,2]
[347354592,1735725060312,-500.0,0.00019726,3]
[347354593,1735725060322,-219.391353,0.00019726,2]
[347354594,1735725060331,-219.391353,0.00019726,2]
[347354595,1735725060341,-500.0,0.00019726,3]
[347354596,1735725060350,-422.78159955,0.00019726,3]
[347354597,1735725060359,-501.44000094,0.00019726,3]
[347354598,1735725060369,-502.47843857,0.00019726,3]
[347354599,1735725060377,-503.1306153,0.00019726,3]
[347354600,1735725060386,-500.0,0.00019726,3]
[347354601,1735725060396,-500.0,0.00019726,3]
[347354602,1735725060406,-500.0,0.00019726,3]
[347354603,1735725060415,-500.0,0.00019726,3]
[347354604,1735725060425,-500.0,0.00019726,3]
[347354605,1735725060436,-500.0,0.00019726,3]
[347354606,1735725060445,-500.0,0.00019726,3]
[347354607,1735725060454,-500.0,0.00019726,3]
[347354608,1735725060463,-500.0,0.00019726,3]
[347354609,1735725060472,-500.0,0.00019726,3]
[347354610,1735725060481,-500.0,0.00019726,3]
[347354611,1735725060491,-6254.18,0.00019726,3]
[347354612,1735725060500,-965.48,0.00019726,3]
[347354613,1735725060509,-789.16,0.00019726,3]
[347354614,1735725060518,-500.0,0.00019726,3]
[347354615,1735725060527,-500.0,0.00019726,3]
[347354616,1735725060537,-500.0,0.00019726,3]
[347354617,1735725060547,-500.0,0.00019726,3]
[347354618,1735725060556,-502.24284396,0.00019726,3]
[347354619,1735725060565,-500.0,0.00019726,3]
[347354620,1735725060574,-500.0,0.00019726,3]
[347354621,1735725060583,-500.0,0.00019726,3]
[347354622,1735725060592,-504.44990867,0.00019726,3]
[347354623,1735725060601,-503.45526659,0.00019726,3]
[347354624,1735725060611,-500.0,0.00019726,3]
[347354625,1735725060620,-500.0,0.00019726,3]
[347354626,1735725060630,-500.0,0.00019726,3]
[347354627,1735725060640,-564.06,0.00019726,3]
[347354628,1735725060649,-1592.35,0.00019726,3]
[347354629,1735725060660,-504.01882891,0.00019726,3]
[347354630,1735725060669,-500.0,0.00019726,3]
[347354631,1735725060678,-500.0,0.00019726,3]
[347354632,1735725060687,-500.0,0.00019726,3]
[347354633,1735725060697,-838.89,0.00019726,3]
[347354634,1735725060706,-500.0,0.00019726,3]
[347354635,1735725060716,-1860.01,0.00019726,3]
[347354636,1735725060725,-477.4977688,0.00019726,3]
[347354637,1735725060734,-506.8217565,0.00019726,3]
[347354638,1735725060743,-500.0,0.00019726,3]
[347354639,1735725060752,-500.0,0.00019726,3]
[347354640,1735725060762,-500.0,0.00019726,3]
[347354641,1735725060771,-500.0,0.00019726,3]
[347354642,1735725060780,-500.0,0.00019726,3]
[347354643,1735725060790,-500.0,0.00019726,3]
[347354644,1735725060799,-500.0,0.00019726,3]
[347354645,1735725060808,-4953.81,0.00019726,3]
[347354646,1735725060817,-500.0,0.00019726,3]
[347354647,1735725060826,-1368.56,0.00019726,3]
[347354648,1735725060836,-500.0,0.00019726,3]
[347354649,1735725060845,-500.0,0.00019726,3]
[347354650,1735725060854,-500.0,0.00019726,3]
[347354651,1735725060864,-811.4,0.00019726,3]
[347354652,1735725060873,-542.18987077,0.00019726,3]
[347354653,1735725060882,-500.0,0.00019726,3]
[347354654,1735725060892,-500.0,0.00019726,3]
[347354655,1735725060901,-500.0,0.00019726,3]
[347354656,1735725060912,-504.39,0.00019726,3]
[347354657,1735725060921,-500.0,0.00019726,3]
[347354658,1735725060930,-500.0,0.00019726,3]
[347354659,1735725060939,-1440.44,0.00019726,3]
[347354660,1735725060948,-500.0,0.00019726,3]
[347354661,1735725060957,-1590.49,0.00019726,3]
[347354662,1735725060967,-2016.05,0.00019726,3]
[347354663,1735725060978,-1029.85,0.00019726,3]
[347354664,1735725060987,-500.0,0.00019726,3]
[347354665,1735725060996,-500.0,0.00019726,3]
[347354666,1735725061005,-516.68385415,0.00019726,3]
[347354667,1735725061014,-914.56,0.00019726,3]
[347354668,1735725061024,-1046.5,0.00019726,3]
[347354669,1735725061033,-1066.46,0.00019726,3]
[347354670,1735725061042,-500.0,0.00019726,3]
[347354671,1735725061051,-500.0,0.00019726,3]
[347354672,1735725061060,-1125.1,0.00019726,3]
[347354673,1735725061070,-1088.85,0.00019726,3]
[347354674,1735725061079,-701.66,0.00019726,3]
[347354675,1735725061088,-500.0,0.00019726,3]
[347354676,1735725061097,-520.53,0.00019726,3]
[347354677,1735725061106,-500.0,0.00019726,3]
[347354678,1735725061115,-500.0,0.00019726,3]
[347354679,1735725061124,-500.0,0.00019726,3]
[347354680,1735725061134,-1119.02,0.00019726,3]
[347354681,1735725061143,-920.8,0.00019726,3]
[347354682,1735725061152,-940.11,0.00019726,3]
[347354683,1735725061161,-500.0,0.00019726,3]
[347354684,1735725061170,-500.0,0.00019726,3]
[347354685,1735725061180,-500.0,0.00019726,3]
[347354686,1735725061188,-895.21,0.00019726,3]
[347354687,1735725061197,-737.17,0.00019726,3]
[347354688,1735725061207,-632.08020098,0.00019726,3]
[347354689,1735725061216,-976.49,0.00019726,3]
[347354690,1735725061226,-151.0,0.00019726,2]
[347354691,1735725061235,-151.0,0.00019726,2]
[347354692,1735725061244,-300.9839,0.00019726,2]
[347354693,1735725061253,-990.0,0.00019726,3]
[347354694,1735725061262,-500.0,0.00019726,3]
[347354695,1735725061271,-500.0,0.00019726,3]
[347354696,1735725061280,-500.0,0.00019726,3]
[347354697,1735725061289,-3626.2,0.00019726,3]
[347354698,1735725061298,-500.0,0.00019726,3]
[347354699,1735725061307,-640.12,0.00019726,3]
[347354700,1735725061316,-500.0,0.00019726,3]
[347354701,1735725061325,-995.64,0.00019726,3]
[347354702,1735725061334,-630.06,0.00019726,3]
[347354703,1735725061343,-503.48612127,0.00019726,3]
[347354704,1735725061353,-500.0,0.00019726,3]
[347354705,1735725061362,-565.1,0.00019726,3]
[347354706,1735725061371,-500.0,0.00019726,3]
[347354707,1735725061380,-1339.1,0.00019726,3]
[347354708,1735725061389,-500.0,0.00019726,3]
[347354709,1735725061398,-500.0,0.00019726,3]
[347354710,1735725061407,-500.0,0.00019726,3]
[347354711,1735725061416,-500.0,0.00019726,3]
[347354712,1735725061425,-500.0,0.00019726,3]
[347354713,1735725061434,-1118.94,0.00019726,3]
[347354714,1735725061443,-2123.82,0.00019726,3]
[347354715,1735725061451,-976.4,0.00019726,3]
[347354716,1735725061460,-500.0,0.00019726,3]
[347354717,1735725061469,-7258.44,0.00019726,3]
[347354718,1735725061479,-2709.39,0.00019726,3]
[347354719,1735725061488,-983.62,0.00019726,3]
[347354720,1735725061498,-715.51,0.00019726,3]
[347354721,1735725061507,-52149.91,0.00019726,3]
[347354722,1735725061516,-500.0,0.00019726,3]
[347354723,1735725061525,-3016.01,0.00019726,3]
[347354724,1735725061534,-500.0,0.00019726,3]
[347354725,1735725061543,-898.88,0.00019726,3]
[347354726,1735725061552,-500.0,0.00019726,3]
[347354727,1735725061562,-2298.81,0.00019726,3]
[347354728,1735725061571,-500.0,0.00019726,3]
[347354729,1735725061581,-1485.17,0.00019726,3]
[347354730,1735725061592,-502.8249857,0.00019726,3]
[347354731,1735725061602,-500.0,0.00019726,3]
[347354732,1735725061612,-504.36564117,0.00019726,3]
[347354733,1735725061621,-500.0,0.00019726,3]
[347354734,1735725061630,-500.0,0.00019726,3]
[347354735,1735725061638,-1715.31,0.00019726,3]
[347354736,1735725061648,-500.0,0.00019726,3]
[347354737,1735725061658,-1947.28,0.00019726,3]
[347354738,1735725061667,-514.25,0.00019726,3]
[347354739,1735725061679,-500.0,0.00019726,3]
[347354740,1735725061689,-500.0,0.00019726,3]
[347354741,1735725061698,-500.0,0.00019726,3]
[347354742,1735725061707,-500.0,0.00019726,3]
[347354743,1735725061716,-500.0,0.00019726,3]
[347354744,1735725061725,-4949.5,0.00019726,3]
[347354745,1735725061735,-1218.72,0.00019726,3]
[347354746,1735725061744,-1418.89,0.00019726,3]
[347354747,1735725061753,-500.0,0.00019726,3]
[347354748,1735725061763,-500.0,0.00019726,3]
[347354749,1735725061772,-501.32017101,0.00019726,3]
[347354750,1735725061781,-638.64,0.00019726,3]
[347354751,1735725061790,-1288.26,0.00019726,3]
[347354752,1735725061799,-500.0,0.00019726,3]
[347354753,1735725061808,-500.0,0.00019726,3]
[347354754,1735725061817,-506.40250586,0.00019726,3]
[347354755,1735725061827,-500.0,0.00019726,3]
[347354756,1735725061836,-691.27,0.00019726,3]
[347354757,1735725061845,-500.0,0.00019726,3]
[347354758,1735725061854,-500.0,0.00019726,3]
[347354759,1735725061863,-500.0,0.00019726,3]
[347354760,1735725061873,-399.44066373,0.00019726,3]
[347354761,1735725061882,-2801.82,0.00019726,3]
[347354762,1735725061891,-884.89,0.00019726,3]
[347354763,1735725061991,-500.0,0.00019726,3]
[347354764,1735725062000,-843.27,0.00019726,3]
[347354765,1735725062009,-1791.82,0.00019726,3]
[347354766,1735725062019,-528.25943529,0.00019726,3]
[347354767,1735725062028,-500.0,0.00019726,3]
[347354768,1735725062037,-500.0,0.00019726,3]
[347354769,1735725062047,-239.9891613,0.00019726,3]
[347354770,1735725062056,-1031.16,0.00019726,3]
[347354771,1735725062066,-500.0,0.00019726,3]
[347354772,1735725062075,-507.09358732,0.00019726,3]
[347354773,1735725062084,-1672.9,0.00019726,3]
[347354774,1735725062093,-4372.17,0.00019726,3]
[347354775,1735725062103,-500.0,0.00019726,3]
[347354776,1735725062113,-500.0,0.00019726,3]
[347354777,1735725062123,-500.0,0.00019726,3]
[347354778,1735725062133,-500.0,0.00019726,3]
[347354779,1735725062143,-590.03,0.00019726,3]
[347354780,1735725062153,-500.0,0.00019726,3]
[347354781,1735725062163,-2771.02,0.00019726,3]
[347354782,1735725062173,-500.0,0.00019726,3]
[347354783,1735725062182,-500.0,0.00019726,3]
[347354784,1735725062192,-500.0,0.00019726,3]
[347354785,1735725062201,-500.0,0.00019726,3]
[347354786,1735725062210,-500.0,0.00019726,3]
[347354787,1735725062220,-500.0,0.00019726,3]
[347354788,1735725062229,-500.0,0.00019726,3]
[347354789,1735725062239,-500.0,0.00019776,2]
[347354790,1735725062248,-152.07935229,0.00019849,2]
[347354791,1735725062257,-4579.30694566,0.00019849,2]
[347354792,1735725062267,-29617.0,0.0002,2]
[347354793,1735725062276,-10998.49,0.0002,3]
[347354794,1735725062285,-1718.89,0.0002,3]
[347354795,1735725062295,-500.0,0.0002,3]
[347354796,1735725062304,-628.08,0.0002,3]
[347354797,1735725062313,-514.59739147,0.0002,3]
[347354798,1735725062322,-500.0,0.0002,3]
[347354799,1735725062331,-500.0,0.0002,3]
[347354800,1735725062340,-562.35251868,0.0002,3]
[347354801,1735725062349,-500.0,0.0002,3]
[347354802,1735725062359,-500.0,0.0002,3]
[347354803,1735725062368,-500.0,0.0002,3]
[347354804,1735725062377,-492.87484442,0.0002,3]
[347354805,1735725062387,-500.0,0.0002,3]
[347354806,1735725062396,-588.37,0.0002,3]
[347354807,1735725062406,-166.3822477,0.0002,3]
[347354808,1735725062416,-500.0,0.0002,3]
[347354809,1735725062425,-500.0,0.0002,3]
[347354810,1735725062435,-603.03,0.0002,3]
[347354811,1735725062446,-557.01,0.0002,3]
[347354812,1735725062456,-500.0,0.0002,3]
[347354813,1735725062466,-2795.09,0.0002,2]
[347354814,1735725062475,-861.34,0.0002,2]
[347354815,1735725062485,-500.0,0.0002,3]
[347354816,1735725062494,-500.0,0.0002,3]
[347354817,1735725062503,-500.0,0.0002,3]
[347354818,1735725062513,-500.0,0.0002,3]
[347354819,1735725062522,-502.11991503,0.0002,3]
[347354820,1735725062531,-801.22,0.0002,3]
[347354821,1735725062540,-3079.18,0.0002,3]
[347354822,1735725062550,-500.0,0.0002,3]
[347354823,1735725062559,-500.0,0.0002,3]
[347354824,1735725062569,-500.0,0.0002,3]
[347354825,1735725062579,-500.0,0.0002,3]
[347354826,1735725062588,-500.0,0.0002,3]
[347354827,1735725062597,-500.0,0.0002,3]
[347354828,1735725062606,-500.0,0.0002,3]
[347354829,1735725062616,-151.0,0.0002,2]
[347354830,1735725062625,-12170.76,0.0002,3]
[347354831,1735725062634,-287.615158,0.0002,2]
[347354832,1735725062644,-500.0,0.0002,3]
[347354833,1735725062653,-500.0,0.0002,3]
[347354834,1735725062663,-542.81059869,0.0002,3]
[347354835,1735725062672,-287.615163,0.0002,2]
[347354836,1735725062682,-470.31144889,0.0002,3]
[347354837,1735725062691,-854.83,0.0002,3]
[347354838,1735725062700,-500.0,0.0002,3]
[347354839,1735725062710,-500.0,0.0002,3]
[347354840,1735725062719,-500.0,0.0002,3]
[347354841,1735725062729,-500.0,0.0002,3]
[347354842,1735725062738,-737.73,0.0002,3]
[347354843,1735725062747,-500.0,0.0002,3]
[347354844,1735725062756,-516.21,0.0002,3]
[347354845,1735725062766,-500.0,0.0002,3]
[347354846,1735725062775,-500.0,0.0002,3]
[347354847,1735725062784,-500.0,0.0002,3]
[347354848,1735725062793,-500.0,0.0002,3]
[347354849,1735725062802,-500.0,0.0002,3]
[347354850,1735725062812,-219.391353,0.0002,2]
[347354851,1735725062821,-219.391353,0.0002,2]
[347354852,1735725062831,-500.0,0.0002,3]
[347354853,1735725062840,-219.391353,0.0002,2]
[347354854,1735725062849,-504.00650153,0.0002,3]
[347354855,1735725062859,-219.391353,0.0002,2]
[347354856,1735725062869,-500.0,0.0002,3]
[347354857,1735725062879,-613.21136518,0.0002,3]
[347354858,1735725062889,-505.14856472,0.0002,3]
[347354859,1735725062899,-500.0,0.0002,3]
[347354860,1735725062909,-500.0,0.0002,3]
[347354861,1735725062919,-500.0,0.0002,3]
[347354862,1735725062928,-500.0,0.0002,3]
[347354863,1735725062938,-603.77826506,0.0002,3]
[347354864,1735725062947,-6254.18,0.0002,3]
[347354865,1735725062956,-965.48,0.0002,3]
[347354866,1735725062966,-789.16,0.0002,3]
[347354867,1735725062978,-500.0,0.0002,3]
[347354868,1735725062987,-500.0,0.0002,3]
[347354869,1735725062997,-500.0,0.0002,3]
[347354870,1735725063005,-150.81594233,0.0002,3]
[347354871,1735725063016,-548.1,0.0002,3]
[347354872,1735725063025,-500.0,0.0002,3]
[347354873,1735725063035,-500.0,0.0002,3]
[347354874,1735725063045,-500.0,0.0002,3]
[347354875,1735725063056,-500.0,0.0002,3]
[347354876,1735725063065,-564.06,0.0002,3]
[347354877,1735725063076,-1592.35,0.0002,3]
[347354878,1735725063085,-500.0,0.0002,3]
[347354879,1735725063094,-503.75981729,0.0002,3]
[347354880,1735725063103,-168.48256932,0.0002,3]
[347354881,1735725063112,-838.89,0.0002,3]
[347354882,1735725063121,-1860.01,0.0002,3]
[347354883,1735725063130,-500.0,0.0002,3]
[347354884,1735725063139,-500.0,0.0002,3]
[347354885,1735725063148,-500.0,0.0002,3]
[347354886,1735725063158,-500.0,0.0002,3]
[347354887,1735725063168,-500.0,0.0002,3]
[347354888,1735725063177,-512.32525403,0.0002,3]
[347354889,1735725063187,-4953.81,0.0002,3]
[347354890,1735725063196,-428.06800246,0.0002,3]
[347354891,1735725063205,-1368.56,0.0002,3]
[347354892,1735725063215,-204.83061565,0.0002,3]
[347354893,1735725063224,-500.0,0.0002,3]
[347354894,1735725063234,-503.00490823,0.0002,3]
[347354895,1735725063243,-811.4,0.0002,3]
[347354896,1735725063253,-500.0,0.0002,3]
[347354897,1735725063262,-500.25598904,0.0002,3]
[347354898,1735725063271,-500.0,0.0002,3]
[347354899,1735725063280,-504.39,0.0002,3]
[347354900,1735725063290,-500.0,0.0002,3]
[347354901,1735725063299,-1440.44,0.0002,3]
[347354902,1735725063308,-1590.49,0.0002,3]
[347354903,1735725063318,-2016.05,0.0002,3]
[347354904,1735725063327,-1029.85,0.0002,3]
[347354905,1735725063335,-500.0,0.0002,3]
[347354906,1735725063345,-914.56,0.0002,3]
[347354907,1735725063354,-1046.5,0.0002,3]
[347354908,1735725063364,-1066.46,0.0002,3]
[347354909,1735725063374,-500.0,0.0002,3]
[347354910,1735725063384,-336.97329208,0.0002,3]
[347354911,1735725063394,-1125.1,0.0002,3]
[347354912,1735725063403,-1088.85,0.0002,3]
[347354913,1735725063413,-701.66,0.0002,3]
[347354914,1735725063423,-508.38734931,0.0002,3]
[347354915,1735725063432,-520.53,0.0002,3]
[347354916,1735725063442,-500.0,0.0002,3]
[347354917,1735725063451,-500.0,0.0002,3]
[347354918,1735725063461,-337.01467378,0.0002,3]
[347354919,1735725063470,-1119.02,0.0002,3]
[347354920,1735725063480,-920.8,0.0002,3]
[347354921,1735725063489,-940.11,0.0002,3]
[347354922,1735725063498,-500.0,0.0002,3]
[347354923,1735725063508,-500.0,0.0002,3]
[347354924,1735725063517,-895.21,0.0002,3]
[347354925,1735725063527,-737.17,0.0002,3]
[347354926,1735725063536,-976.49,0.0002,3]
[347354927,1735725063546,-990.0,0.0002,3]
[347354928,1735725063556,-500.0,0.0002,3]
[347354929,1735725063565,-500.0,0.0002,3]
[347354930,1735725063574,-3626.2,0.0002,3]
[347354931,1735725063584,-500.0,0.0002,3]
[347354932,1735725063593,-640.12,0.0002,3]
[347354933,1735725063603,-500.0,0.0002,3]
[347354934,1735725063612,-995.64,0.0002,3]
[347354935,1735725063622,-630.06,0.0002,3]
[347354936,1735725063631,-565.1,0.0002,3]
[347354937,1735725063642,-1339.1,0.0002,3]
[347354938,1735725063651,-500.0,0.0002,3]
[347354939,1735725063662,-500.0,0.0002,3]
[347354940,1735725063671,-500.0,0.0002,3]
[347354941,1735725063681,-500.0,0.0002,3]
[347354942,1735725063690,-500.0,0.0002,3]
[347354943,1735725063699,-1118.94,0.0002,3]
[347354944,1735725063709,-2123.82,0.0002,3]
[347354945,1735725063719,-976.4,0.0002,3]
[347354946,1735725063728,-500.0,0.0002,3]
[347354947,1735725063738,-7258.44,0.0002,3]
[347354948,1735725063747,-2709.39,0.0002,3]
[347354949,1735725063840,-983.62,0.0002,3]
[347354950,1735725063851,-715.51,0.0002,3]
[347354951,1735725063862,-52149.91,0.0002,3]
[347354952,1735725063872,-500.0,0.0002,3]
[347354953,1735725063882,-3016.01,0.0002,3]
[347354954,1735725063892,-500.0,0.0002,3]
[347354955,1735725063902,-898.88,0.0002,3]
[347354956,1735725063913,-500.0,0.0002,3]
[347354957,1735725063923,-2298.81,0.0002,3]
[347354958,1735725063933,-1485.17,0.0002,3]
[347354959,1735725063942,-500.0,0.0002,3]
[347354960,1735725063952,-500.0,0.0002,3]
[347354961,1735725063962,-500.0,0.0002,3]
[347354962,1735725063975,-1715.31,0.0002,3]
[347354963,1735725063985,-500.0,0.0002,3]
[347354964,1735725063994,-1947.28,0.0002,3]
[347354965,1735725064004,-514.25,0.0002,3]
[347354966,1735725064014,-500.0,0.0002,3]
[347354967,1735725064022,-500.0,0.0002,3]
[347354968,1735725064032,-500.0,0.0002,3]
[347354969,1735725064042,-500.0,0.0002,3]
[347354970,1735725064051,-515.3229847,0.0002,3]
[347354971,1735725064062,-4949.5,0.0002,3]
[347354972,1735725064071,-1218.72,0.0002,3]
[347354973,1735725064080,-1418.89,0.0002,3]
[347354974,1735725064089,-500.0,0.0002,3]
[347354975,1735725064099,-638.64,0.0002,3]
[347354976,1735725064108,-1288.26,0.0002,3]
[347354977,1735725064117,-500.0,0.0002,3]
[347354978,1735725064127,-691.27,0.0002,3]
[347354979,1735725064136,-500.0,0.0002,3]
[347354980,1735725064145,-500.0,0.0002,3]
[347354981,1735725064155,-500.0,0.0002,3]
[347354982,1735725064164,-2801.82,0.0002,3]
[347354983,1735725064173,-884.89,0.0002,3]
[347354984,1735725064183,-500.0,0.0002,3]
[347354985,1735725064192,-843.27,0.0002,3]
[347354986,1735725064202,-1791.82,0.0002,3]
[347354987,1735725064211,-500.0,0.0002,3]